fUST/lending_fUST_20251001
["ID","MTS","AMOUNT","RATE_DAILY","PERIOD"]
[388673848,1759314633051,-627.77,0.00019178,2]
[388673849,1759314633060,-574.48,0.00019178,2]
[388673850,1759314633069,-500.0,0.00019178,2]
[388673851,1759314633079,-500.0,0.00019178,2]
[388673852,1759314633088,-500.0,0.00019178,2]
[388673853,1759314633098,-500.0,0.00019178,2]
[388673854,1759314633107,-500.0,0.00019178,2]
[388673855,1759314633117,-500.0,0.00019178,2]
[388673856,1759314633126,-500.0,0.00019178,2]
[388673857,1759314633135,-909.96,0.00019178,2]
[388673858,1759314633145,-930.34,0.00019178,2]
[388673859,1759314633154,-500.0,0.00019178,2]
[388673860,1759314633163,-445.7533544,0.00019178,2]
[388673861,1759314633173,-500.0,0.00019178,2]
[388673862,1759314633182,-500.0,0.00019178,2]
[388673863,1759314633191,-802.54,0.00019178,2]
[388673864,1759314633201,-500.0,0.00019178,2]
[388673865,1759314633210,-500.0,0.00019178,2]
[388673866,1759314633219,-500.0,0.00019178,2]
[388673867,1759314633229,-500.0,0.00019178,2]
[388673868,1759314633238,-520.8,0.00019178,2]
[388673869,1759314633247,-500.0,0.00019178,2]
[388673870,1759314633257,-618.23,0.00019178,2]
[388673871,1759314633266,-677.97,0.00019178,2]
[388673872,1759314633275,-524.65,0.00019178,2]
[388673873,1759314633285,-500.0,0.00019178,2]
[388673874,1759314633294,-500.0,0.00019178,2]
[388673875,1759314633304,-910.87,0.00019178,2]
[388673876,1759314633314,-500.0,0.00019178,2]
[388673877,1759314633323,-500.0,0.00019178,2]
[388673878,1759314633332,-500.0,0.00019178,2]
[388673879,1759314633342,-500.0,0.00019178,2]
[388673880,1759314633351,-747.44,0.00019178,2]
[388673881,1759314633360,-500.0,0.00019178,2]
[388673882,1759314633370,-904.56,0.00019178,2]
[388673883,1759314633379,-886.48,0.00019178,2]
[388673884,1759314633388,-2374.38,0.00019178,2]
[388673885,1759314633398,-312.3433073,0.00019178,2]
[388673886,1759314633407,-574.7,0.00019178,2]
[388673887,1759314633417,-500.0,0.00019178,2]
[388673888,1759314633427,-500.0,0.00019178,2]
[388673889,1759314633436,-772.1,0.00019178,2]
[388673890,1759314633446,-1416.14,0.00019178,2]
[388673891,1759314633456,-910.45,0.00019178,2]
[388673892,1759314633465,-500.0,0.00019178,2]
[388673893,1759314633475,-2249.11,0.00019178,2]
[388673894,1759314633484,-1300.86,0.00019178,2]
[388673895,1759314633494,-1058.69,0.00019178,2]
[388673896,1759314633504,-500.0,0.00019178,2]
[388673897,1759314633513,-463.31466835,0.00019178,2]
[388673898,1759314633522,-281.47596369,0.00019178,2]
[388673899,1759314633533,-500.0,0.00019178,2]
[388673900,1759314633542,-500.0,0.00019178,2]
[388673901,1759314633552,-500.0,0.00019178,2]
[388673902,1759314633562,-484.00179851,0.00019178,2]
[388673903,1759314633571,-500.0,0.00019178,2]
[388673904,1759314633581,-2980.92,0.00019178,2]
[388673905,1759314633591,-500.0,0.00019178,2]
[388673906,1759314633600,-500.0,0.00019178,2]
[388673907,1759314633609,-500.0,0.00019178,2]
[388673908,1759314633618,-504.22,0.00019178,2]
[388673909,1759314633628,-512.28,0.00019178,2]
[388673910,1759314633638,-500.0,0.00019178,2]
[388673911,1759314633647,-500.0,0.00019178,2]
[388673912,1759314633657,-744.57,0.00019178,2]
[388673913,1759314633667,-500.0,0.00019178,2]
[388673914,1759314633676,-500.0,0.00019178,2]
[388673915,1759314633686,-500.0,0.00019178,2]
[388673916,1759314633695,-500.0,0.00019178,2]
[388673917,1759314633705,-684.7,0.00019178,2]
[388673918,1759314633714,-1207.59,0.00019178,2]
[388673919,1759314633723,-844.98,0.00019178,2]
[388673920,1759314633733,-500.0,0.00019178,2]
[388673921,1759314633742,-1166.69,0.00019178,2]
[388673922,1759314633919,-500.0,0.00019178,2]
[388673923,1759314633931,-500.0,0.00019178,2]
[388673924,1759314633941,-2430.28,0.00019178,2]
[388673925,1759314633951,-500.0,0.00019178,2]
[388673926,1759314633972,-500.0,0.00019178,2]
[388673927,1759314633983,-649.64,0.00019178,2]
[388673928,1759314633993,-877.07,0.00019178,2]
[388673929,1759314634004,-1222.98,0.00019178,2]
[388673930,1759314634013,-500.0,0.00019178,2]
[388673931,1759314634024,-693.65,0.00019178,2]
[388673932,1759314634034,-222.08,0.00019178,2]
[388673933,1759314634043,-500.0,0.00019178,2]
[388673934,1759314634053,-500.0,0.00019178,2]
[388673935,1759314634063,-500.0,0.00019178,2]
[388673936,1759314634073,-500.0,0.00019178,2]
[388673937,1759314634084,-500.0,0.00019178,2]
[388673938,1759314634093,-483.68459785,0.00019178,2]
[388673939,1759314634104,-500.0,0.00019178,2]
[388673940,1759314634114,-500.0,0.00019178,2]
[388673941,1759314634124,-358.28338591,0.00019178,2]
[388673942,1759314634134,-500.0,0.00019178,2]
[388673943,1759314634144,-500.0,0.00019178,2]
[388673944,1759314634153,-500.0,0.00019178,2]
[388673945,1759314634164,-485.62624292,0.00019178,2]
[388673946,1759314634175,-480.0,0.00019178,2]
[388673947,1759314634187,-663.21,0.00019178,2]
[388673948,1759314634196,-693.24,0.00019178,2]
[388673949,1759314634206,-1760.74,0.00019178,2]
[388673950,1759314634219,-500.0,0.00019178,2]
[388673951,1759314634240,-500.0,0.00019178,2]
[388673952,1759314634467,-500.0,0.00019178,2]
[388673953,1759314634478,-500.0,0.00019178,2]
[388673954,1759314634489,-3260.93,0.00019178,2]
[388673955,1759314634499,-627.7,0.00019178,2]
[388673956,1759314634509,-3430.62,0.00019178,2]
[388673957,1759314634519,-809.78,0.00019178,2]
[388673958,1759314634530,-191.60705474,0.00019178,2]
[388673959,1759314636225,204.8013467,0.00019065,2]
[388674329,1759314645970,-308.39294526,0.00019178,2]
[388674332,1759314645982,-500.0,0.00019178,2]
[388674334,1759314645993,-500.0,0.00019178,2]
[388674336,1759314646004,-1568.5,0.00019178,2]
[388674338,1759314646015,-190.10705574,0.00019178,2]
[388675167,1759314669097,4594.81472183,0.00019078,2]
[388675168,1759314669120,10000.01,0.00019078,2]
[388675169,1759314669144,10000.01,0.00019078,2]
[388675170,1759314669167,10000.01,0.00019078,2]
[388675171,1759314669189,9126.04337875,0.00019078,2]
[388675172,1759314671510,168.0,0.00019094,2]
[388675174,1759314687452,1547.54662689,0.00019099,2]
[388675176,1759314693636,28078.3210711,0.00034605,120]
[388675178,1759314711935,217.92460577,0.00019064,2]
[388675180,1759314730653,813.65592165,0.00034605,120]
[388675181,1759314732478,243.5149981,0.00018186,2]
[388675182,1759314750945,-510.38512961,0.00019117,2]
[388675183,1759314753663,-400.33085956,0.00019117,2]
[388675184,1759314755737,-417.37658991,0.00019117,2]
[388675185,1759314758276,-106.07081826,0.00019117,2]
[388675188,1759314800836,729.13919057,0.00019078,2]
[388675189,1759314830337,1328.09257909,0.00019078,2]
[388675190,1759314854062,525.54009685,0.00019078,2]
[388675191,1759314874870,540.70717665,0.00027397,120]
[388675192,1759314942115,154.0,9.5e-07,2]
[388675193,1759314943147,154.0,9.5e-07,2]
[388675195,1759315008103,150.5,0.0002191,120]
[388675196,1759315008545,150.5,0.000219,120]
[388675197,1759315089818,637.99679174,0.00019078,2]
[388675198,1759315194924,690.29318416,0.00019078,2]
[388675200,1759315327368,1434.16339734,0.00016283,2]
[388675201,1759315327673,1434.16339734,0.00016513,2]
[388675202,1759315327984,1434.16339734,0.00016791,2]
[388675203,1759315328330,1434.16339734,0.00017145,2]
[388675204,1759315328633,1434.16339734,0.00017453,2]
[388675205,1759315328922,1434.16339734,0.00017593,2]
[388675206,1759315329353,704.7364318,0.00017903,2]
[388675207,1759315329374,729.42696554,0.00017903,2]
[388675208,1759315329690,1434.16339734,0.00018201,2]
[388675209,1759315329996,1434.16339734,0.00018369,2]
[388675210,1759315330316,1434.16339734,0.00018642,2]
[388675211,1759315343784,4968.09284244,0.0001911,2]
[388675212,1759315343805,31.90715756,0.0001911,2]
[388675213,1759315373988,558.24719272,0.00019078,2]
[388675215,1759315458250,3053.15,0.00034635,60]
[388675216,1759315467776,-1200.0,0.00019165,2]
[388675217,1759315486364,5000.01,0.00019078,2]
[388675218,1759315490920,2600.0,0.00018177,2]
[388675219,1759315490943,9048.3391771,0.00018177,2]
[388675220,1759315492421,289.906492,0.00018177,2]
[388675221,1759315520916,500.0,8.219e-05,2]
[388675222,1759315521119,161.7643309,8.493e-05,2]
[388675223,1759315521142,338.2356691,8.493e-05,2]
[388675224,1759315521311,500.0,8.767e-05,2]
[388675225,1759315521520,500.0,9.041e-05,2]
[388675226,1759315521736,500.0,9.315e-05,2]
[388675227,1759315521942,500.0,9.589e-05,2]
[388675228,1759315522140,500.0,9.863e-05,2]
[388675229,1759315522338,500.0,0.00010137,2]
[388675230,1759315522545,213.76,0.00010411,2]
[388675231,1759315535674,1890.80098824,0.00019165,2]
[388675232,1759315536239,552.23454736,0.00019078,2]
[388675233,1759315558372,2423.3387636,0.00019165,2]
[388675234,1759315562853,300.0,0.00019165,2]
[388675236,1759315622262,300.0,0.00019165,2]
[388675237,1759315645962,981.6400317,0.00019165,2]
[388675238,1759315645986,218.3599683,0.00019165,2]
[388675239,1759315648314,162.0,0.00019165,2]
[388675240,1759315650362,9619.6500317,0.00019078,2]
[388675241,1759315650383,10000.01,0.00019078,2]
[388675242,1759315650405,5903.88283666,0.00019078,2]
[388675243,1759315657229,488.46629363,0.00019076,2]
[388675244,1759315667953,-999.98,0.00019166,2]
[388675245,1759315667981,-421.9602496,0.00019166,2]
[388675246,1759315668012,-151.0,0.00019166,2]
[388675247,1759315668040,-200.0,0.00019166,2]
[388675248,1759315668072,-151.0,0.00019166,2]
[388675249,1759315668102,-200.0,0.00019166,2]
[388675250,1759315668131,-151.0,0.00019166,2]
[388675251,1759315668159,-200.0,0.00019166,2]
[388675252,1759315668186,-1000.0,0.00019166,2]
[388675253,1759315668215,-151.0,0.00019166,2]
[388675254,1759315668243,-1000.0,0.00019166,2]
[388675255,1759315668271,-200.0,0.00019166,2]
[388675256,1759315668297,-151.0,0.00019166,2]
[388675257,1759315674578,5000.0,0.00019008,2]
[388675258,1759315688036,-300.0,0.00019165,2]
[388675259,1759315688068,-1000.7,0.00019166,2]
[388675260,1759315688098,-1000.0,0.00019166,2]
[388675261,1759315688129,-1000.0,0.00019166,2]
[388675262,1759315688158,-1000.0,0.00019166,2]
[388675263,1759315688185,-249.03167229,0.00019166,2]
[388675264,1759315688212,-250.0,0.00019166,2]
[388675265,1759315688243,-150.54665542,0.00019166,2]
[388675266,1759315697136,5000.0,0.00019008,2]
[388675267,1759315698018,-99.45334458,0.00019166,2]
[388675268,1759315698047,-500.0,0.00019166,2]
[388675269,1759315698079,-500.0,0.00019166,2]
[388675270,1759315698109,-500.0,0.00019166,2]
[388675271,1759315698138,-500.0,0.00019166,2]
[388675272,1759315698168,-500.0,0.00019166,2]
[388675273,1759315698202,-500.0,0.00019166,2]
[388675274,1759315698231,-500.0,0.00019166,2]
[388675275,1759315698260,-500.0,0.00019166,2]
[388675276,1759315698287,-500.0,0.00019166,2]
[388675277,1759315698318,-253.15011158,0.00019166,2]
[388675278,1759315698348,-107.02302243,0.00019166,2]
[388675279,1759315712219,1436.9403314,0.00018928,2]
[388675280,1759315818508,8563.0696686,0.00019075,2]
[388675281,1759315818533,10000.01,0.00019075,2]
[388675282,1759315818557,6929.4904322,0.00019075,2]
[388675308,1759315835659,-300.0,0.00019166,2]
[388675310,1759315835668,-300.0,0.00019166,2]
[388675312,1759315835677,-300.0,0.00019166,2]
[388675314,1759315835686,-151.0,0.00019166,2]
[388675316,1759315835695,-244.7064896,0.00019166,2]
[388675318,1759315835704,-300.0,0.00019167,2]
[388675320,1759315835715,-1200.0,0.00019167,2]
[388675322,1759315835724,-1167.98,0.00019168,3]
[388675324,1759315835734,-583.99,0.00019168,3]
[388675326,1759315835744,-292.0,0.00019168,3]
[388675329,1759315835753,-876.02,0.00019168,3]
[388675332,1759315835764,-500.0,0.00019173,2]
[388675334,1759315835774,-500.0,0.00019173,2]
[388675337,1759315835783,-500.0,0.00019173,2]
[388675340,1759315835792,-500.0,0.00019173,2]
[388675343,1759315835802,-500.0,0.00019173,2]
[388675346,1759315835811,-500.0,0.00019173,2]
[388675348,1759315835820,-500.0,0.00019173,2]
[388675350,1759315835829,-505.33770531,0.00019173,2]
[388675352,1759315835838,-500.0,0.00019173,2]
[388675354,1759315835851,-196.16311334,0.00019174,2]
[388675356,1759315835860,-399.28476784,0.00019174,2]
[388675358,1759315835870,-274.60612634,0.00019174,2]
[388675360,1759315835879,-500.0,0.00019174,2]
[388675362,1759315835889,-500.0,0.00019174,2]
[388675364,1759315835898,-500.0,0.00019174,2]
[388675366,1759315835907,-500.0,0.00019174,2]
[388675368,1759315835916,-217.52665639,0.00019174,2]
[388675370,1759315835926,-500.0,0.00019174,2]
[388675372,1759315835935,-500.0,0.00019174,2]
[388675374,1759315835944,-283.52514118,0.00019174,2]
[388675588,1759315838017,-216.47485882,0.00019174,2]
[388675590,1759315838028,-181.11091432,0.00019174,2]
[388675592,1759315838037,-500.0,0.00019174,2]
[388675594,1759315838047,-500.0,0.00019174,2]
[388675596,1759315838058,-500.0,0.00019174,2]
[388675598,1759315838067,-309.59101008,0.00019174,2]
[388675600,1759315838077,-396.7994461,0.00019174,2]
[388675602,1759315838087,-500.0,0.00019174,2]
[388675603,1759315838097,-500.0,0.00019174,2]
[388675606,1759315838107,-500.0,0.00019174,2]
[388675609,1759315838120,-500.0,0.00019174,2]
[388675611,1759315838129,-212.33314377,0.00019174,2]
[388675614,1759315838139,-422.86209132,0.00019174,2]
[388675616,1759315838149,-269.20689903,0.00019174,2]
[388675618,1759315838159,-51885.8802832,0.00019175,2]
[388675620,1759315838169,-2395.0755668,0.00019175,2]
[388675622,1759315838179,-1246.2057514,0.00019176,2]
[388675624,1759315838189,-2171.1651142,0.00019176,2]
[388675626,1759315838200,-658.01844446,0.00019177,2]
[388675628,1759315838210,-253.279,0.00019177,2]
[388675630,1759315838220,-500.0,0.00019178,2]
[388675632,1759315838230,-500.0,0.00019178,2]
[388675634,1759315838240,-37195.4806671,0.00019178,2]
[388675636,1759315838250,-500.0,0.00019178,2]
[388675638,1759315838259,-500.0,0.00019178,2]
[388675640,1759315838268,-520.0,0.00019178,3]
[388675642,1759315838277,-500.0,0.00019178,2]
[388675644,1759315838286,-500.0,0.00019178,2]
[388675646,1759315838296,-422.08430554,0.00019178,2]
[388675648,1759315838305,-500.0,0.00019178,2]
[388675649,1759315838314,-500.0,0.00019178,2]
[388675651,1759315838324,-500.0,0.00019178,2]
[388675654,1759315838334,-500.0,0.00019178,2]
[388675655,1759315838343,-500.0,0.00019178,2]
[388675657,1759315838353,-500.0,0.00019178,2]
[388675659,1759315838363,-500.0,0.00019178,2]
[388675661,1759315838372,-586.22,0.00019178,2]
[388675663,1759315838382,-500.0,0.00019178,2]
[388675665,1759315838392,-500.0,0.00019178,2]
[388675666,1759315838402,-500.0,0.00019178,2]
[388675667,1759315838411,-576.56,0.00019178,2]
[388675668,1759315838421,-500.0,0.00019178,2]
[388675669,1759315838431,-500.0,0.00019178,2]
[388675670,1759315838440,-500.0,0.00019178,2]
[388675671,1759315838449,-500.0,0.00019178,2]
[388675672,1759315838459,-557.67363562,0.00019178,2]
[388675673,1759315838468,-500.0,0.00019178,2]
[388675674,1759315838478,-465.72622315,0.00019178,2]
[388675675,1759315838488,-577.01,0.00019178,2]
[388675676,1759315838497,-500.0,0.00019178,2]
[388675677,1759315838507,-722.49,0.00019178,2]
[388675678,1759315838516,-500.0,0.00019178,2]
[388675679,1759315838527,-500.0,0.00019178,2]
[388675680,1759315838536,-500.0,0.00019178,2]
[388675681,1759315838546,-500.0,0.00019178,2]
[388675682,1759315838555,-500.0,0.00019178,2]
[388675683,1759315838565,-525.63,0.00019178,2]
[388675684,1759315838575,-925.78,0.00019178,2]
[388675685,1759315838584,-500.0,0.00019178,2]
[388675686,1759315838594,-500.0,0.00019178,2]
[388675687,1759315838604,-891.88,0.00019178,2]
[388675688,1759315838615,-500.0,0.00019178,2]
[388675689,1759315838625,-500.0,0.00019178,2]
[388675690,1759315838634,-2351.82,0.00019178,2]
[388675691,1759315838644,-1258.46,0.00019178,2]
[388675692,1759315838654,-500.0,0.00019178,2]
[388675693,1759315838665,-500.0,0.00019178,2]
[388675694,1759315838675,-627.85327465,0.00019178,2]
[388675695,1759315838684,-480.0,0.00019178,2]
[388675696,1759315838694,-500.0,0.00019178,2]
[388675698,1759315838704,-500.0,0.00019178,2]
[388675699,1759315838713,-500.0,0.00019178,2]
[388675701,1759315838723,-683.28,0.00019178,2]
[388675703,1759315838733,-513.62,0.00019178,2]
[388675705,1759315838743,-500.0,0.00019178,2]
[388675707,1759315838753,-426.76405565,0.00019178,2]
[388675709,1759315838762,-1008.62,0.00019178,2]
[388675711,1759315838771,-500.0,0.00019178,2]
[388675713,1759315838780,-500.0,0.00019178,2]
[388675715,1759315838790,-480.0,0.00019178,2]
[388675717,1759315838804,-500.0,0.00019178,2]
[388675719,1759315838815,-500.0,0.00019178,2]
[388675721,1759315838825,-894.71,0.00019178,2]
[388675723,1759315838834,-500.0,0.00019178,2]
[388675725,1759315838844,-500.0,0.00019178,2]
[388675727,1759315838854,-555.03,0.00019178,2]
[388675729,1759315838862,-463.00034921,0.00019178,2]
[388675731,1759315838872,-1056.85,0.00019178,2]
[388675733,1759315838881,-500.0,0.00019178,2]
[388675735,1759315838891,-500.0,0.00019178,2]
[388675736,1759315838900,-836.24,0.00019178,2]
[388675739,1759315838911,-654.88,0.00019178,2]
[388675741,1759315838920,-942.59,0.00019178,2]
[388675743,1759315838931,-500.0,0.00019178,2]
[388675745,1759315838940,-462.76319141,0.00019178,2]
[388675747,1759315838949,-500.0,0.00019178,2]
[388675749,1759315838959,-500.0,0.00019178,2]
[388675750,1759315838971,-1012.7,0.00019178,2]
[388675752,1759315838983,-500.0,0.00019178,2]
[388675754,1759315838992,-820.77,0.00019178,2]
[388675756,1759315839002,-2661.23,0.00019178,2]
[388675758,1759315839012,-500.0,0.00019178,2]
[388675760,1759315839022,-598.98,0.00019178,2]
[388675762,1759315839032,-500.0,0.00019178,2]
[388675764,1759315839042,-483.28352723,0.00019178,2]
[388675766,1759315839051,-500.0,0.00019178,2]
[388675768,1759315839060,-500.0,0.00019178,2]
[388675770,1759315839069,-500.0,0.00019178,2]
[388675772,1759315839078,-1514.48,0.00019178,2]
[388675774,1759315839088,-2516.99,0.00019178,2]
[388675776,1759315839098,-934.51,0.00019178,2]
[388675778,1759315839108,-760.97,0.00019178,2]
[388675780,1759315839123,-1456.74,0.00019178,2]
[388675783,1759315839133,-500.0,0.00019178,2]
[388675785,1759315839143,-500.0,0.00019178,2]
[388675787,1759315839152,-156.17428807,0.00019178,2]
[388675790,1759315839163,-500.0,0.00019178,2]
[388675792,1759315839172,-500.0,0.00019178,2]
[388675794,1759315839182,-1184.51,0.00019178,2]
[388675797,1759315839194,-1000.0,0.00019178,2]
[388675799,1759315839204,-831.21,0.00019178,2]
[388675801,1759315839213,-440.0,0.00019178,2]
[388675804,1759315839223,-500.0,0.00019178,2]
[388675806,1759315839232,-500.0,0.00019178,2]
[388675808,1759315839241,-500.0,0.00019178,2]
[388675810,1759315839250,-500.0,0.00019178,2]
[388675812,1759315839260,-483.46988149,0.00019178,2]
[388675814,1759315839269,-266.77318003,0.00019178,2]
[388675816,1759315839278,-500.0,0.00019178,2]
[388675818,1759315839287,-500.0,0.00019178,2]
[388675820,1759315839296,-500.0,0.00019178,2]
[388675822,1759315839305,-500.0,0.00019178,2]
[388675824,1759315839314,-500.0,0.00019178,2]
[388675826,1759315839323,-500.0,0.00019178,2]
[388675828,1759315839334,-485.3907315,0.00019178,2]
[388675830,1759315839346,-500.0,0.00019178,2]
[388675832,1759315839355,-3332.09,0.00019178,2]
[388675834,1759315839364,-500.0,0.00019178,2]
[388675836,1759315839373,-500.0,0.00019178,2]
[388675838,1759315839382,-500.0,0.00019178,2]
[388675840,1759315839392,-2720.68,0.00019178,2]
[388675842,1759315839401,-500.0,0.00019178,2]
[388675844,1759315839411,-727.64,0.00019178,2]
[388675846,1759315839420,-500.0,0.00019178,2]
[388675848,1759315839429,-500.0,0.00019178,2]
[388675850,1759315839438,-1049.88,0.00019178,2]
[388675852,1759315839447,-500.0,0.00019178,2]
[388675854,1759315839456,-500.0,0.00019178,2]
[388675856,1759315839465,-226.69362217,0.00019178,2]
[388675858,1759315839475,-500.0,0.00019178,2]
[388675860,1759315839484,-237.78895889,0.00019178,2]
[388675862,1759315839494,-968.77,0.00019178,2]
[388675864,1759315839503,-500.0,0.00019178,2]
[388675866,1759315839512,-500.0,0.00019178,2]
[388675868,1759315839522,-500.0,0.00019178,2]
[388675870,1759315839530,-500.0,0.00019178,2]
[388675871,1759315839539,-500.0,0.00019178,2]
[388675873,1759315839549,-466.52147331,0.00019178,2]
[388675874,1759315839558,-500.0,0.00019178,2]
[388675876,1759315839567,-500.0,0.00019178,2]
[388675877,1759315839576,-1394.05,0.00019178,2]
[388675878,1759315839586,-500.0,0.00019178,2]
[388675879,1759315839595,-500.0,0.00019178,2]
[388675880,1759315839604,-1106.4,0.00019178,2]
[388675881,1759315839613,-480.0,0.00019178,2]
[388675882,1759315839622,-500.0,0.00019178,2]
[388675883,1759315839632,-653.38,0.00019178,2]
[388675884,1759315839641,-500.0,0.00019178,2]
[388675885,1759315839650,-549.06,0.00019178,2]
[388675886,1759315839659,-500.0,0.00019178,2]
[388675887,1759315839669,-459.38114142,0.00019178,2]
[388675888,1759315839678,-758.9,0.00019178,2]
[388675889,1759315839687,-500.0,0.00019178,2]
[388675890,1759315839697,-451.18347492,0.00019178,2]
[388675891,1759315839707,-5503.77,0.00019178,2]
[388675892,1759315839716,-500.0,0.00019178,2]
[388675893,1759315839725,-494.9007129,0.00019178,2]
[388675894,1759315839735,-1250.05,0.00019178,2]
[388675895,1759315839744,-500.0,0.00019178,2]
[388675896,1759315839754,-500.0,0.00019178,2]
[388675897,1759315839764,-500.0,0.00019178,2]
[388675898,1759315839774,-794.95,0.00019178,2]
[388675899,1759315839783,-500.0,0.00019178,2]
[388675900,1759315839793,-1677.42,0.00019178,2]
[388675901,1759315839801,-760.39,0.00019178,2]
[388675902,1759315839813,-1165.3,0.00019178,2]
[388675903,1759315839822,-860.75,0.00019178,2]
[388675904,1759315839834,-831.84,0.00019178,2]
[388675905,1759315839851,-1981.15,0.00019178,2]
[388675906,1759315839861,-500.0,0.00019178,2]
[388675907,1759315839870,-500.0,0.00019178,2]
[388675908,1759315839879,-378.74249108,0.00019178,2]
[388675909,1759315839897,-500.0,0.00019178,2]
[388675910,1759315839908,-557.12,0.00019178,2]
[388675911,1759315839918,-725.97,0.00019178,2]
[388675912,1759315839928,-500.0,0.00019178,2]
[388675913,1759315839937,-500.0,0.00019178,2]
[388675914,1759315839946,-1121.67,0.00019178,2]
[388675915,1759315839956,-985.25,0.00019178,2]
[388675916,1759315839966,-4060.68,0.00019178,2]
[388675917,1759315839975,-1098.58,0.00019178,2]
[388675918,1759315839984,-500.0,0.00019178,2]
[388675919,1759315839994,-500.0,0.00019178,2]
[388675920,1759315840004,-705.5,0.00019178,2]
[388675921,1759315840014,-500.0,0.00019178,2]
[388675922,1759315840023,-500.0,0.00019178,2]
[388675923,1759315840033,-500.0,0.00019178,2]
[388675924,1759315840042,-500.0,0.00019178,2]
[388675925,1759315840052,-2089.08,0.00019178,2]
[388675926,1759315840061,-3668.86,0.00019178,2]
[388675927,1759315840071,-769.72,0.00019178,2]
[388675928,1759315840080,-500.0,0.00019178,2]
[388675929,1759315840089,-500.0,0.00019178,2]
[388675930,1759315840099,-500.0,0.00019178,2]
[388675931,1759315840109,-500.0,0.00019178,2]
[388675932,1759315840119,-897.75,0.00019178,2]
[388675933,1759315840131,-500.0,0.00019178,2]
[388675934,1759315840141,-500.0,0.00019178,2]
[388675936,1759315840151,-3584.74,0.00019178,2]
[388675937,1759315840162,-1975.96,0.00019178,2]
[388675938,1759315840172,-590.88,0.00019178,2]
[388675939,1759315840183,-500.0,0.00019178,2]
[388675940,1759315840192,-153.72855784,0.00019178,2]
[388675941,1759315840203,-500.0,0.00019178,2]
[388675954,1759315840213,-500.0,0.00019178,2]
[388675956,1759315840429,-804.88,0.00019178,2]
[388675958,1759315840439,-500.0,0.00019178,2]
[388675960,1759315840452,-4689.62,0.00019178,2]
[388675962,1759315840462,-500.0,0.00019178,2]
[388675964,1759315840471,-1375.73,0.00019178,2]
[388675966,1759315840481,-500.0,0.00019178,2]
[388675968,1759315840490,-500.0,0.00019178,2]
[388675970,1759315840500,-500.0,0.00019178,2]
[388675972,1759315840511,-963.21,0.00019178,2]
[388675974,1759315840520,-500.0,0.00019178,2]
[388675977,1759315840530,-3645.51,0.00019178,2]
[388675979,1759315840541,-721.28,0.00019178,2]
[388675981,1759315840550,-500.0,0.00019178,2]
[388675982,1759315840559,-500.0,0.00019178,2]
[388675984,1759315840569,-11921.84,0.00019178,2]
[388675986,1759315840578,-1658.13,0.00019178,2]
[388675987,1759315840587,-1760.29,0.00019178,2]
[388675988,1759315840597,-1000.0,0.00019178,2]
[388675989,1759315840606,-500.0,0.00019178,2]
[388675990,1759315840616,-500.0,0.00019178,2]
[388675991,1759315840625,-784.0,0.00019178,2]